[Event "Late-Titled-Tuesday-Blitz-January-30-2024"]
[Site "Chess.com"]
[Date "2024.01.30"]
[Round "6"]
[White "FairChess_on_YouTube"]
[Black "JSPrepz"]
[Result "1-0"]
[WhiteElo "3085"]
[BlackElo "2856"]
[TimeControl "180+1"]
[EndTime "15:08:16 PST"]
[Termination "FairChess_on_YouTube won on time"]

1. e4 {[%clk 0:03:00.9]} 1... e5 {[%clk 0:03:00.2]} 2. Nf3 {[%clk 0:03:00.9]}
2... Nc6 {[%clk 0:03:00.8]} 3. d4 {[%clk 0:03:00.8]} 3... exd4 {[%clk
0:03:01.4]} 4. Nxd4 {[%clk 0:03:01.6]} 4... Nf6 {[%clk 0:03:02.1]} 5. Nxc6
{[%clk 0:03:01.2]} 5... bxc6 {[%clk 0:03:03]} 6. Qe2 {[%clk 0:03:01.8]} 6... Be7
{[%clk 0:02:52]} 7. e5 {[%clk 0:03:00.1]} 7... Nd5 {[%clk 0:02:52.1]} 8. Qg4
{[%clk 0:03:00.7]} 8... g6 {[%clk 0:02:35.4]} 9. Qg3 {[%clk 0:03:01]} 9... d6
{[%clk 0:02:33.9]} 10. Bd3 {[%clk 0:02:58.4]} 10... dxe5 {[%clk 0:02:27]} 11.
Qxe5 {[%clk 0:02:54.1]} 11... O-O {[%clk 0:02:27.3]} 12. O-O {[%clk 0:02:54.2]}
12... Bf6 {[%clk 0:02:25]} 13. Qg3 {[%clk 0:02:54]} 13... Re8 {[%clk 0:02:19.6]}
14. Nd2 {[%clk 0:02:51.8]} 14... Nb4 {[%clk 0:02:04]} 15. Ne4 {[%clk 0:02:49.6]}
15... Nxd3 {[%clk 0:02:02.9]} 16. Nxf6+ {[%clk 0:02:36.2]} 16... Qxf6 {[%clk
0:02:02.4]} 17. cxd3 {[%clk 0:02:35]} 17... Bf5 {[%clk 0:01:58.8]} 18. h4 {[%clk
0:02:26.7]} 18... Qd6 {[%clk 0:01:57.2]} 19. Bf4 {[%clk 0:02:26.3]} 19... Qxd3
{[%clk 0:01:56.7]} 20. Qg5 {[%clk 0:02:26.9]} 20... Qd8 {[%clk 0:01:48.4]} 21.
Qh6 {[%clk 0:02:23.5]} 21... Re4 {[%clk 0:01:42.5]} 22. Rad1 {[%clk 0:02:18.4]}
22... Qf8 {[%clk 0:01:42.6]} 23. f3 {[%clk 0:02:16.1]} 23... Qxh6 {[%clk
0:01:40.4]} 24. Bxh6 {[%clk 0:02:17]} 24... Rxh4 {[%clk 0:01:40.7]} 25. Bg5
{[%clk 0:02:17.1]} 25... Rb4 {[%clk 0:01:35.4]} 26. b3 {[%clk 0:02:17.1]} 26...
Kg7 {[%clk 0:01:32]} 27. Rfe1 {[%clk 0:02:13.9]} 27... h6 {[%clk 0:01:29.8]} 28.
Bd2 {[%clk 0:02:13.3]} 28... Rb5 {[%clk 0:01:29.8]} 29. Re7 {[%clk 0:02:11.3]}
29... Rc8 {[%clk 0:01:11.7]} 30. Rde1 {[%clk 0:02:01.2]} 30... Rd5 {[%clk
0:01:06.3]} 31. Bc3+ {[%clk 0:01:55.2]} 31... Kf8 {[%clk 0:01:06.5]} 32. Bf6
{[%clk 0:01:43.1]} 32... Be6 {[%clk 0:00:58.2]} 33. R1xe6 {[%clk 0:01:41.9]}
33... fxe6 {[%clk 0:00:58.3]} 34. Rh7 {[%clk 0:01:42.7]} 34... Ke8 {[%clk
0:00:44.8]} 35. Re7+ {[%clk 0:01:39.2]} 35... Kf8 {[%clk 0:00:45.2]} 36. Rh7
{[%clk 0:01:39.9]} 36... Re8 {[%clk 0:00:37.4]} 37. Rxc7 {[%clk 0:01:37.6]}
37... Rf5 {[%clk 0:00:32.7]} 38. Bg7+ {[%clk 0:01:37.2]} 38... Kg8 {[%clk
0:00:33.3]} 39. Bxh6 {[%clk 0:01:37.9]} 39... a5 {[%clk 0:00:24.2]} 40. Rxc6
{[%clk 0:01:32.5]} 40... Kf7 {[%clk 0:00:24.6]} 41. Bd2 {[%clk 0:01:23.8]} 41...
Ra8 {[%clk 0:00:24.6]} 42. Rc7+ {[%clk 0:01:23.4]} 42... Ke8 {[%clk 0:00:25.1]}
43. Rg7 {[%clk 0:01:22.6]} 43... a4 {[%clk 0:00:22.5]} 44. Rg8+ {[%clk
0:01:19.4]} 44... Rf8 {[%clk 0:00:22.3]} 45. Rxg6 {[%clk 0:01:20]} 45... axb3
{[%clk 0:00:22.8]} 46. axb3 {[%clk 0:01:19.4]} 46... Kd7 {[%clk 0:00:20]} 47.
Rg7+ {[%clk 0:01:00.3]} 47... Kc6 {[%clk 0:00:20]} 48. Be3 {[%clk 0:00:58.8]}
48... Ra3 {[%clk 0:00:16.9]} 49. Re7 {[%clk 0:00:56.8]} 49... Kd6 {[%clk
0:00:16.8]} 50. Rb7 {[%clk 0:00:56.2]} 50... Ra1+ {[%clk 0:00:14.7]} 51. Kf2
{[%clk 0:00:49]} 51... Ra2+ {[%clk 0:00:15]} 52. Kg3 {[%clk 0:00:44.8]} 52...
Rg8+ {[%clk 0:00:15.2]} 53. Kf4 {[%clk 0:00:45.4]} 53... Rgxg2 {[%clk
0:00:13.9]} 54. Rb6+ {[%clk 0:00:42.1]} 54... Kd7 {[%clk 0:00:14.2]} 55. b4
{[%clk 0:00:39.8]} 55... Rge2 {[%clk 0:00:12.4]} 56. Bc5 {[%clk 0:00:39.5]}
56... e5+ {[%clk 0:00:11.9]} 57. Kf5 {[%clk 0:00:39.4]} 57... Ra3 {[%clk
0:00:11.1]} 58. Rd6+ {[%clk 0:00:36.3]} 58... Kc7 {[%clk 0:00:11]} 59. b5 {[%clk
0:00:36.2]} 59... Rxf3+ {[%clk 0:00:11]} 60. Ke6 {[%clk 0:00:36.8]} 60... Rc2
{[%clk 0:00:07.5]} 61. b6+ {[%clk 0:00:33.6]} 61... Kb7 {[%clk 0:00:08.1]} 62.
Rd7+ {[%clk 0:00:34.1]} 62... Ka6 {[%clk 0:00:02.6]} 63. Ra7+ {[%clk 0:00:34]}
63... Kb5 {[%clk 0:00:03.2]} 64. b7 {[%clk 0:00:34.9]} 64... Rxc5 {[%clk
0:00:01.7]} 65. b8=Q+ {[%clk 0:00:34.9]} 65... Kc4 {[%clk 0:00:02.3]} 66. Ra4+
{[%clk 0:00:34.8]} 66... Kd3 {[%clk 0:00:02.1]} 67. Qb3+ {[%clk 0:00:33.5]}
67... Rc3 {[%clk 0:00:01.8]} 68. Qd5+ {[%clk 0:00:33]} 1-0

[Event "Late-Titled-Tuesday-Blitz-January-30-2024"]
[Site "Chess.com"]
[Date "2024.01.30"]
[Round "6"]
[White "ArchibaldCerveza29"]
[Black "CarlosjPineror"]
[Result "0-1"]
[WhiteElo "2488"]
[BlackElo "2686"]
[TimeControl "180+1"]
[EndTime "15:08:16 PST"]
[Termination "CarlosjPineror won by checkmate"]

1. b3 {[%clk 0:03:00.9]} 1... Nf6 {[%clk 0:02:59.4]} 2. Bb2 {[%clk 0:03:01.8]}
2... c5 {[%clk 0:02:59.9]} 3. g3 {[%clk 0:03:02.7]} 3... e6 {[%clk 0:03:00.1]}
4. Bg2 {[%clk 0:03:03.6]} 4... Be7 {[%clk 0:03:00.7]} 5. e3 {[%clk 0:03:02]}
5... O-O {[%clk 0:03:01.2]} 6. Ne2 {[%clk 0:03:02.8]} 6... Nc6 {[%clk
0:03:00.8]} 7. O-O {[%clk 0:03:03.7]} 7... b6 {[%clk 0:03:00.4]} 8. d3 {[%clk
0:03:04.6]} 8... Bb7 {[%clk 0:03:00.3]} 9. Nd2 {[%clk 0:03:05.5]} 9... d5 {[%clk
0:03:00.5]} 10. h3 {[%clk 0:03:05.4]} 10... Qc7 {[%clk 0:02:57.4]} 11. a3 {[%clk
0:03:04.7]} 11... Rac8 {[%clk 0:02:56.3]} 12. Kh2 {[%clk 0:03:04.6]} 12... e5
{[%clk 0:02:53.1]} 13. e4 {[%clk 0:02:45.7]} 13... dxe4 {[%clk 0:02:36.7]} 14.
dxe4 {[%clk 0:02:46.6]} 14... Rcd8 {[%clk 0:02:36.4]} 15. Qe1 {[%clk 0:02:45.7]}
15... Nd4 {[%clk 0:02:35]} 16. Rc1 {[%clk 0:02:25.7]} 16... Ba6 {[%clk 0:02:32]}
17. c4 {[%clk 0:02:18.8]} 17... Bb7 {[%clk 0:02:04.1]} 18. Nc3 {[%clk
0:02:15.7]} 18... Rfe8 {[%clk 0:02:02.7]} 19. Nd5 {[%clk 0:02:06.9]} 19... Nxd5
{[%clk 0:02:02.2]} 20. cxd5 {[%clk 0:01:59.7]} 20... Ba6 {[%clk 0:02:02.1]} 21.
Rh1 {[%clk 0:01:55.8]} 21... Bg5 {[%clk 0:01:59.7]} 22. Nf3 {[%clk 0:01:48.4]}
22... Bxc1 {[%clk 0:01:51]} 23. Qxc1 {[%clk 0:01:45.1]} 23... Nxb3 {[%clk
0:01:49.2]} 24. Qc2 {[%clk 0:01:34.3]} 24... Na5 {[%clk 0:01:28.6]} 25. Nh4
{[%clk 0:01:21.2]} 25... Nc4 {[%clk 0:01:24.2]} 26. Nf5 {[%clk 0:01:15.5]} 26...
Nxb2 {[%clk 0:01:16.9]} 27. Qxb2 {[%clk 0:01:14.4]} 27... Bc8 {[%clk 0:01:17.6]}
28. Ne3 {[%clk 0:01:13.9]} 28... a6 {[%clk 0:01:04.7]} 29. Rf1 {[%clk
0:01:12.2]} 29... b5 {[%clk 0:01:04.1]} 30. f4 {[%clk 0:01:11.7]} 30... c4
{[%clk 0:01:04.8]} 31. Qc3 {[%clk 0:01:04.4]} 31... Bd7 {[%clk 0:01:01.1]} 32.
Kh1 {[%clk 0:00:52.8]} 32... f6 {[%clk 0:01:00.9]} 33. f5 {[%clk 0:00:44.7]}
33... Qc5 {[%clk 0:00:59.4]} 34. Rd1 {[%clk 0:00:36.8]} 34... Rb8 {[%clk
0:00:50.9]} 35. d6 {[%clk 0:00:26]} 35... Bc6 {[%clk 0:00:50.8]} 36. Nd5 {[%clk
0:00:24.6]} 36... Red8 {[%clk 0:00:48]} 37. Ne7+ {[%clk 0:00:19.5]} 37... Kh8
{[%clk 0:00:48.4]} 38. Qf3 {[%clk 0:00:18.5]} 38... Be8 {[%clk 0:00:42.5]} 39.
Rd5 {[%clk 0:00:15.3]} 39... Qb6 {[%clk 0:00:39.3]} 40. Qd1 {[%clk 0:00:14.1]}
40... Bf7 {[%clk 0:00:38.2]} 41. Rd2 {[%clk 0:00:13.6]} 41... Rd7 {[%clk
0:00:37.8]} 42. Nd5 {[%clk 0:00:13]} 42... Bxd5 {[%clk 0:00:37.6]} 43. Rxd5
{[%clk 0:00:13.9]} 43... Rbd8 {[%clk 0:00:38]} 44. Qh5 {[%clk 0:00:13]} 44...
Kg8 {[%clk 0:00:33.9]} 45. Kh2 {[%clk 0:00:11.6]} 45... Rxd6 {[%clk 0:00:34.1]}
46. h4 {[%clk 0:00:11.1]} 46... Qc7 {[%clk 0:00:28.5]} 47. Qd1 {[%clk
0:00:10.5]} 47... c3 {[%clk 0:00:27.4]} 48. Qc2 {[%clk 0:00:10.3]} 48... Rxd5
{[%clk 0:00:26.1]} 49. exd5 {[%clk 0:00:11.2]} 49... Qc5 {[%clk 0:00:26.7]} 50.
Kh3 {[%clk 0:00:09.9]} 50... Qxa3 {[%clk 0:00:23.1]} 51. Qf2 {[%clk 0:00:08.6]}
51... Qd6 {[%clk 0:00:20.6]} 52. Qc2 {[%clk 0:00:07.7]} 52... Qc5 {[%clk
0:00:19]} 53. Qb3 {[%clk 0:00:06.8]} 53... Rd6 {[%clk 0:00:18.8]} 54. Qa2 {[%clk
0:00:07.2]} 54... c2 {[%clk 0:00:17.9]} 55. Qa5 {[%clk 0:00:06.9]} 55... c1=Q
{[%clk 0:00:17.7]} 56. Qa2 {[%clk 0:00:05.1]} 56... Q1c2 {[%clk 0:00:16.7]} 57.
Qa5 {[%clk 0:00:04.5]} 57... Qxg2+ {[%clk 0:00:16.4]} 58. Kxg2 {[%clk
0:00:05.4]} 58... Qxd5+ {[%clk 0:00:17.1]} 59. Kh3 {[%clk 0:00:05.5]} 59... e4
{[%clk 0:00:15.6]} 60. Qc7 {[%clk 0:00:04.6]} 60... Qxf5+ {[%clk 0:00:15.4]} 61.
Kh2 {[%clk 0:00:04.3]} 61... Rd2+ {[%clk 0:00:15.2]} 62. Kg1 {[%clk 0:00:03.7]}
62... Qf2+ {[%clk 0:00:15.8]} 63. Kh1 {[%clk 0:00:04.6]} 63... Qg2# {[%clk
0:00:16.5]} 0-1

[Event "Late-Titled-Tuesday-Blitz-January-30-2024"]
[Site "Chess.com"]
[Date "2024.01.30"]
[Round "6"]
[White "MikaelyanArman"]
[Black "Azerichess"]
[Result "0-1"]
[WhiteElo "2854"]
[BlackElo "3074"]
[TimeControl "180+1"]
[EndTime "15:08:18 PST"]
[Termination "Azerichess won on time"]

1. d4 {[%clk 0:03:00.9]} 1... Nf6 {[%clk 0:02:58.7]} 2. c4 {[%clk 0:03:00.2]}
2... g6 {[%clk 0:02:59.2]} 3. Nc3 {[%clk 0:03:00.3]} 3... d5 {[%clk 0:02:58.7]}
4. cxd5 {[%clk 0:03:00.2]} 4... Nxd5 {[%clk 0:02:59.6]} 5. e4 {[%clk 0:03:00.9]}
5... Nxc3 {[%clk 0:02:59.8]} 6. bxc3 {[%clk 0:03:01.8]} 6... Bg7 {[%clk
0:03:00.5]} 7. Nf3 {[%clk 0:03:02.3]} 7... c5 {[%clk 0:03:00.5]} 8. Bb5+ {[%clk
0:03:02.5]} 8... Nc6 {[%clk 0:03:00.3]} 9. O-O {[%clk 0:03:02.5]} 9... O-O
{[%clk 0:02:56.6]} 10. Be3 {[%clk 0:03:01]} 10... cxd4 {[%clk 0:02:44.1]} 11.
cxd4 {[%clk 0:03:01.9]} 11... Bg4 {[%clk 0:02:43.1]} 12. Bxc6 {[%clk 0:02:52]}
12... bxc6 {[%clk 0:02:44]} 13. Rc1 {[%clk 0:02:41.9]} 13... Bxf3 {[%clk
0:02:41.8]} 14. Qxf3 {[%clk 0:02:42.8]} 14... Bxd4 {[%clk 0:02:36.1]} 15. Rfd1
{[%clk 0:02:42]} 15... e5 {[%clk 0:02:33.2]} 16. Bxd4 {[%clk 0:02:40.9]} 16...
exd4 {[%clk 0:02:34.1]} 17. Rxc6 {[%clk 0:02:40.8]} 17... Qa5 {[%clk 0:02:30.6]}
18. h4 {[%clk 0:02:31]} 18... Qxa2 {[%clk 0:02:25.9]} 19. h5 {[%clk 0:02:18.8]}
19... Rac8 {[%clk 0:02:18.9]} 20. Rxc8 {[%clk 0:02:08.9]} 20... Rxc8 {[%clk
0:02:19.8]} 21. Qf6 {[%clk 0:01:26.7]} 21... Qe2 {[%clk 0:01:43.2]} 22. Ra1
{[%clk 0:00:53.7]} 22... Qxh5 {[%clk 0:01:10.2]} 23. Qxd4 {[%clk 0:00:52]} 23...
a5 {[%clk 0:01:09.2]} 24. e5 {[%clk 0:00:44.4]} 24... Qf5 {[%clk 0:00:59.9]} 25.
Rxa5 {[%clk 0:00:26]} 25... Rc1+ {[%clk 0:00:42.4]} 26. Kh2 {[%clk 0:00:26.4]}
26... h5 {[%clk 0:00:17.3]} 27. Ra8+ {[%clk 0:00:25.5]} 27... Rc8 {[%clk
0:00:17]} 28. Rxc8+ {[%clk 0:00:20.8]} 28... Qxc8 {[%clk 0:00:17.9]} 29. Qd6
{[%clk 0:00:15.8]} 29... Qf5 {[%clk 0:00:17.6]} 30. Kg1 {[%clk 0:00:14.7]} 30...
g5 {[%clk 0:00:17.4]} 31. Qh6 {[%clk 0:00:08.3]} 31... h4 {[%clk 0:00:16.8]} 32.
Qd6 {[%clk 0:00:06.9]} 32... Kg7 {[%clk 0:00:16.9]} 33. f3 {[%clk 0:00:06.1]}
33... Qe6 {[%clk 0:00:16]} 34. Qd4 {[%clk 0:00:05.3]} 34... Kg6 {[%clk
0:00:15.5]} 35. Qe4+ {[%clk 0:00:05.5]} 35... Qf5 {[%clk 0:00:15.8]} 36. Qc6+
{[%clk 0:00:05.6]} 36... Kg7 {[%clk 0:00:16.3]} 37. Qd6 {[%clk 0:00:05.3]} 37...
Qb1+ {[%clk 0:00:15.7]} 38. Kh2 {[%clk 0:00:05.7]} 38... Qf5 {[%clk 0:00:16.6]}
39. Qd5 {[%clk 0:00:05.2]} 39... Qf4+ {[%clk 0:00:15.7]} 40. Kg1 {[%clk
0:00:05.7]} 40... h3 {[%clk 0:00:15.8]} 41. gxh3 {[%clk 0:00:04.6]} 41... Qg3+
{[%clk 0:00:16]} 42. Kf1 {[%clk 0:00:05.3]} 42... Qxh3+ {[%clk 0:00:16.5]} 43.
Kf2 {[%clk 0:00:06]} 43... Qf5 {[%clk 0:00:17]} 44. Qd4 {[%clk 0:00:05.1]} 44...
Kg6 {[%clk 0:00:16.5]} 45. Qd6+ {[%clk 0:00:05.3]} 45... Kh5 {[%clk 0:00:16.7]}
46. Kg3 {[%clk 0:00:04]} 46... Qf4+ {[%clk 0:00:16.3]} 47. Kg2 {[%clk
0:00:04.6]} 47... Qf5 {[%clk 0:00:16.1]} 48. Qe7 {[%clk 0:00:03.9]} 48... Kh4
{[%clk 0:00:13.1]} 49. Qd6 {[%clk 0:00:03.9]} 49... Qc2+ {[%clk 0:00:13]} 50.
Kf1 {[%clk 0:00:03.4]} 50... Qc1+ {[%clk 0:00:13.3]} 51. Ke2 {[%clk 0:00:03.6]}
51... Qc2+ {[%clk 0:00:13.9]} 52. Kf1 {[%clk 0:00:04.2]} 52... Qb1+ {[%clk
0:00:13.2]} 53. Ke2 {[%clk 0:00:04.4]} 53... Qb2+ {[%clk 0:00:12.8]} 54. Kf1
{[%clk 0:00:04.6]} 54... Qc1+ {[%clk 0:00:08.6]} 55. Ke2 {[%clk 0:00:05]} 55...
Qf4 {[%clk 0:00:08.6]} 56. Qd5 {[%clk 0:00:02]} 56... Kg3 {[%clk 0:00:07.6]} 0-1

[Event "Late-Titled-Tuesday-Blitz-January-30-2024"]
[Site "Chess.com"]
[Date "2024.01.30"]
[Round "6"]
[White "DenLaz"]
[Black "temus_galaktionov"]
[Result "1-0"]
[WhiteElo "3051"]
[BlackElo "2887"]
[TimeControl "180+1"]
[EndTime "15:08:19 PST"]
[Termination "DenLaz won by resignation"]

1. d4 {[%clk 0:03:00.9]} 1... c6 {[%clk 0:03:00.9]} 2. c4 {[%clk 0:03:00.5]}
2... g6 {[%clk 0:03:01.8]} 3. Nf3 {[%clk 0:03:00.7]} 3... Bg7 {[%clk 0:03:01.9]}
4. Nc3 {[%clk 0:02:59.7]} 4... d6 {[%clk 0:03:02.2]} 5. g3 {[%clk 0:02:59.5]}
5... Nf6 {[%clk 0:03:01.6]} 6. Bg2 {[%clk 0:03:00.2]} 6... O-O {[%clk
0:03:02.2]} 7. O-O {[%clk 0:03:00.8]} 7... Nbd7 {[%clk 0:03:02.9]} 8. e4 {[%clk
0:03:01]} 8... e5 {[%clk 0:03:03.4]} 9. h3 {[%clk 0:03:01.6]} 9... a5 {[%clk
0:03:02.7]} 10. Be3 {[%clk 0:03:01.9]} 10... exd4 {[%clk 0:03:02.6]} 11. Nxd4
{[%clk 0:03:01.8]} 11... Re8 {[%clk 0:03:02.8]} 12. Qc2 {[%clk 0:03:02.3]} 12...
Nc5 {[%clk 0:03:03]} 13. Rad1 {[%clk 0:03:02.8]} 13... Qc7 {[%clk 0:03:03.4]}
14. Rfe1 {[%clk 0:03:01.2]} 14... a4 {[%clk 0:03:03.4]} 15. f4 {[%clk
0:02:59.4]} 15... Qa5 {[%clk 0:02:59.6]} 16. Bf2 {[%clk 0:02:59]} 16... h5
{[%clk 0:02:57.7]} 17. Nf3 {[%clk 0:02:47]} 17... Rd8 {[%clk 0:02:53.2]} 18. f5
{[%clk 0:02:16.2]} 18... gxf5 {[%clk 0:02:36.2]} 19. exf5 {[%clk 0:02:17.1]}
19... Qb4 {[%clk 0:02:33.1]} 20. Bd4 {[%clk 0:01:47.2]} 20... Qxc4 {[%clk
0:02:18.7]} 21. Qd2 {[%clk 0:01:46.2]} 21... Bxf5 {[%clk 0:02:14.9]} 22. Qg5
{[%clk 0:01:44.8]} 22... Ne6 {[%clk 0:01:50.2]} 23. Qxf5 {[%clk 0:01:42]} 23...
Nxd4 {[%clk 0:01:50.4]} 24. Rxd4 {[%clk 0:01:35.6]} 24... Qc5 {[%clk 0:01:50.4]}
25. Qxc5 {[%clk 0:01:35.3]} 25... dxc5 {[%clk 0:01:51.3]} 26. Rxd8+ {[%clk
0:01:35.7]} 26... Rxd8 {[%clk 0:01:51.6]} 27. Nxa4 {[%clk 0:01:36.3]} 27... c4
{[%clk 0:01:47]} 28. Ne5 {[%clk 0:01:25.2]} 28... Rd4 {[%clk 0:01:45.6]} 29. Nc5
{[%clk 0:01:19.6]} 29... Rd2 {[%clk 0:01:38.8]} 30. Nxc4 {[%clk 0:00:25.2]}
30... Rc2 {[%clk 0:01:38]} 31. Bf1 {[%clk 0:00:25.9]} 31... b5 {[%clk
0:01:37.8]} 32. Bd3 {[%clk 0:00:25.6]} 32... Rxc4 {[%clk 0:01:33.4]} 33. Bxc4
{[%clk 0:00:25.8]} 33... bxc4 {[%clk 0:01:34.3]} 34. Ne4 {[%clk 0:00:19.8]}
34... Nd5 {[%clk 0:01:33.7]} 35. Rc1 {[%clk 0:00:17.6]} 35... Nb6 {[%clk
0:01:28.5]} 36. b3 {[%clk 0:00:15.9]} 36... cxb3 {[%clk 0:01:26.7]} 37. axb3
{[%clk 0:00:16.8]} 37... Bd4+ {[%clk 0:01:22.5]} 38. Kg2 {[%clk 0:00:16.7]}
38... Kf8 {[%clk 0:01:21.2]} 39. Rxc6 {[%clk 0:00:17]} 39... Ke7 {[%clk
0:01:21.7]} 40. Rc7+ {[%clk 0:00:12.3]} 40... Ke6 {[%clk 0:01:18.2]} 41. Ng5+
{[%clk 0:00:12.5]} 41... Kf6 {[%clk 0:01:18.2]} 42. Nf3 {[%clk 0:00:12.5]} 42...
Be3 {[%clk 0:01:17]} 43. Rc6+ {[%clk 0:00:13]} 43... Ke7 {[%clk 0:01:16.5]} 44.
Nh4 {[%clk 0:00:13.7]} 44... Kd7 {[%clk 0:01:15.3]} 45. Rf6 {[%clk 0:00:13.2]}
45... Ke7 {[%clk 0:01:13.2]} 46. Rf3 {[%clk 0:00:12.9]} 46... Bc5 {[%clk
0:01:12.3]} 47. Nf5+ {[%clk 0:00:11.4]} 47... Kf6 {[%clk 0:01:09.7]} 48. Ne3+
{[%clk 0:00:08.3]} 48... Ke6 {[%clk 0:01:08.3]} 49. Nc4 {[%clk 0:00:08.9]} 49...
Nd5 {[%clk 0:01:08]} 50. Rd3 {[%clk 0:00:09.2]} 50... Nb4 {[%clk 0:01:05]} 51.
Rd8 {[%clk 0:00:09.2]} 51... Nc6 {[%clk 0:01:04.9]} 52. Rh8 {[%clk 0:00:09.4]}
52... Nd4 {[%clk 0:01:02.2]} 53. Rxh5 {[%clk 0:00:10.1]} 53... Bb4 {[%clk
0:01:02.4]} 54. Re5+ {[%clk 0:00:09.4]} 54... Kf6 {[%clk 0:01:02.3]} 55. Rd5
{[%clk 0:00:10]} 55... Bc3 {[%clk 0:01:00.5]} 56. b4 {[%clk 0:00:09.3]} 56...
Ke6 {[%clk 0:01:00.8]} 57. Re5+ {[%clk 0:00:09]} 57... Kf6 {[%clk 0:01:00.8]}
58. Re4 {[%clk 0:00:09.7]} 58... Nb5 {[%clk 0:00:59]} 59. Ne3 {[%clk 0:00:09.2]}
59... Kg6 {[%clk 0:00:56]} 60. Nd5 {[%clk 0:00:09.3]} 60... Bd2 {[%clk
0:00:54.5]} 61. g4 {[%clk 0:00:09.6]} 61... f5 {[%clk 0:00:50.4]} 62. Ne7+
{[%clk 0:00:08.5]} 62... Kg5 {[%clk 0:00:47.6]} 63. Nxf5 {[%clk 0:00:09.4]}
63... Nc3 {[%clk 0:00:47.7]} 64. Rd4 {[%clk 0:00:09.4]} 64... Bf4 {[%clk
0:00:45]} 65. Rc4 {[%clk 0:00:08.6]} 65... Nd5 {[%clk 0:00:40.1]} 66. Kf3 {[%clk
0:00:06.7]} 66... Bb8 {[%clk 0:00:37.4]} 67. b5 {[%clk 0:00:06.1]} 67... Ba7
{[%clk 0:00:36.6]} 68. h4+ {[%clk 0:00:06]} 68... Kf6 {[%clk 0:00:37.1]} 69.
Rc6+ {[%clk 0:00:06.4]} 69... Ke5 {[%clk 0:00:37.1]} 70. h5 {[%clk 0:00:07]} 1-0

[Event "Late-Titled-Tuesday-Blitz-January-30-2024"]
[Site "Chess.com"]
[Date "2024.01.30"]
[Round "6"]
[White "AndreyNeves"]
[Black "wild3000"]
[Result "1-0"]
[WhiteElo "2090"]
[BlackElo "2331"]
[TimeControl "180+1"]
[EndTime "15:08:25 PST"]
[Termination "AndreyNeves won by checkmate"]

1. d4 {[%clk 0:02:59.3]} 1... a5 {[%clk 0:03:00.9]} 2. e4 {[%clk 0:02:54.4]}
2... h5 {[%clk 0:03:01.8]} 3. Nf3 {[%clk 0:02:53.2]} 3... h4 {[%clk 0:03:02.7]}
4. h3 {[%clk 0:02:51.4]} 4... e6 {[%clk 0:03:03.2]} 5. Nc3 {[%clk 0:02:50.7]}
5... Be7 {[%clk 0:03:01.8]} 6. Bd3 {[%clk 0:02:47.3]} 6... c6 {[%clk 0:03:01.6]}
7. Be3 {[%clk 0:02:44.1]} 7... d5 {[%clk 0:03:01.5]} 8. a3 {[%clk 0:02:33.9]}
8... Nf6 {[%clk 0:03:00.3]} 9. e5 {[%clk 0:02:31]} 9... Nfd7 {[%clk 0:03:00.3]}
10. Ne2 {[%clk 0:02:30.6]} 10... c5 {[%clk 0:03:00.1]} 11. c3 {[%clk 0:02:30.1]}
11... Nc6 {[%clk 0:02:59.7]} 12. O-O {[%clk 0:02:17.1]} 12... a4 {[%clk
0:02:59.7]} 13. Qd2 {[%clk 0:02:11.6]} 13... cxd4 {[%clk 0:02:56.3]} 14. cxd4
{[%clk 0:02:09.3]} 14... Qa5 {[%clk 0:02:56.4]} 15. Nc3 {[%clk 0:02:05.9]} 15...
Nb6 {[%clk 0:02:44.5]} 16. Qe2 {[%clk 0:02:00]} 16... Bd7 {[%clk 0:02:42.2]} 17.
Rad1 {[%clk 0:01:59.5]} 17... Rc8 {[%clk 0:02:41.2]} 18. Nh2 {[%clk 0:01:49.5]}
18... Nc4 {[%clk 0:02:40.3]} 19. Bxc4 {[%clk 0:01:42.6]} 19... dxc4 {[%clk
0:02:41.2]} 20. f4 {[%clk 0:01:41.5]} 20... g6 {[%clk 0:02:39]} 21. d5 {[%clk
0:01:40.8]} 21... exd5 {[%clk 0:02:38.2]} 22. Rxd5 {[%clk 0:01:40]} 22... Qa6
{[%clk 0:02:29.3]} 23. Rfd1 {[%clk 0:01:29.1]} 23... Be6 {[%clk 0:02:29]} 24.
R5d2 {[%clk 0:01:26.3]} 24... O-O {[%clk 0:02:28]} 25. Ng4 {[%clk 0:01:22.3]}
25... Rfd8 {[%clk 0:02:26.5]} 26. Nf6+ {[%clk 0:01:20.3]} 26... Kg7 {[%clk
0:02:24.2]} 27. Nce4 {[%clk 0:01:10.4]} 27... Rxd2 {[%clk 0:02:22]} 28. Rxd2
{[%clk 0:01:04.8]} 28... Rd8 {[%clk 0:02:12.2]} 29. Rxd8 {[%clk 0:01:01.5]}
29... Bxd8 {[%clk 0:02:13.1]} 30. Nc5 {[%clk 0:00:53.3]} 30... Qb5 {[%clk
0:02:05.2]} 31. Nxe6+ {[%clk 0:00:49.7]} 31... fxe6 {[%clk 0:02:06.1]} 32. Ne8+
{[%clk 0:00:46.8]} 32... Kh7 {[%clk 0:01:58.1]} 33. Nd6 {[%clk 0:00:47.3]} 33...
Qd5 {[%clk 0:01:57.6]} 34. Qxc4 {[%clk 0:00:43.3]} 34... Qxc4 {[%clk 0:01:57.4]}
35. Nxc4 {[%clk 0:00:42.7]} 35... Kg7 {[%clk 0:01:41.1]} 36. Nd6 {[%clk
0:00:42]} 36... b6 {[%clk 0:01:29.6]} 37. Nb5 {[%clk 0:00:41.8]} 37... Na5
{[%clk 0:01:21.6]} 38. Nc3 {[%clk 0:00:39.2]} 38... Nc4 {[%clk 0:01:21.6]} 39.
Bc1 {[%clk 0:00:38.8]} 39... b5 {[%clk 0:01:13.3]} 40. Nxb5 {[%clk 0:00:38.3]}
40... Bb6+ {[%clk 0:01:13.7]} 41. Kf1 {[%clk 0:00:37.9]} 41... Ba5 {[%clk
0:01:08.9]} 42. Nc3 {[%clk 0:00:35.6]} 42... Bxc3 {[%clk 0:01:07.1]} 43. bxc3
{[%clk 0:00:36.5]} 43... Kf7 {[%clk 0:01:01]} 44. Ke2 {[%clk 0:00:35.9]} 44...
Ke7 {[%clk 0:01:00.5]} 45. Kd3 {[%clk 0:00:35.8]} 45... Nb6 {[%clk 0:00:56.7]}
46. c4 {[%clk 0:00:36]} 46... Kd7 {[%clk 0:00:56.8]} 47. Be3 {[%clk 0:00:35.7]}
47... Nc8 {[%clk 0:00:56.8]} 48. Bf2 {[%clk 0:00:34.5]} 48... Kc6 {[%clk
0:00:56.6]} 49. Bxh4 {[%clk 0:00:33.7]} 49... Nb6 {[%clk 0:00:57.5]} 50. Bf2
{[%clk 0:00:32.6]} 50... Nd7 {[%clk 0:00:57.5]} 51. g4 {[%clk 0:00:30.8]} 51...
g5 {[%clk 0:00:57.3]} 52. fxg5 {[%clk 0:00:22.9]} 52... Nxe5+ {[%clk 0:00:57.4]}
53. Kc3 {[%clk 0:00:22.9]} 53... Kd7 {[%clk 0:00:50.6]} 54. Bd4 {[%clk
0:00:21.6]} 54... Nf3 {[%clk 0:00:45.8]} 55. g6 {[%clk 0:00:21.5]} 55... Ke8
{[%clk 0:00:43.5]} 56. g7 {[%clk 0:00:20.1]} 56... Kf7 {[%clk 0:00:43.4]} 57.
Bf6 {[%clk 0:00:20.1]} 57... e5 {[%clk 0:00:38.6]} 58. h4 {[%clk 0:00:18.8]}
58... e4 {[%clk 0:00:38.4]} 59. h5 {[%clk 0:00:18.1]} 59... Kg8 {[%clk
0:00:29.6]} 60. h6 {[%clk 0:00:14.4]} 60... Kh7 {[%clk 0:00:29.6]} 61. c5 {[%clk
0:00:13.9]} 61... e3 {[%clk 0:00:28.7]} 62. Kd3 {[%clk 0:00:14]} 62... Ne1+
{[%clk 0:00:26.9]} 63. Ke2 {[%clk 0:00:13.7]} 63... Nc2 {[%clk 0:00:27.1]} 64.
c6 {[%clk 0:00:13.9]} 64... Nxa3 {[%clk 0:00:23.7]} 65. c7 {[%clk 0:00:13.6]}
65... Nc4 {[%clk 0:00:22]} 66. c8=Q {[%clk 0:00:12.8]} 66... Nd6 {[%clk
0:00:22.8]} 67. Qe6 {[%clk 0:00:12]} 67... a3 {[%clk 0:00:22.1]} 68. g8=Q+
{[%clk 0:00:10.5]} 68... Kxh6 {[%clk 0:00:22.1]} 69. Qg5+ {[%clk 0:00:10.6]}
69... Kh7 {[%clk 0:00:21.6]} 70. Qg7# {[%clk 0:00:11.5]} 1-0